bitfinex/quotes_ETHUSD_20251215
["timestamp","ask_amount","ask_price","bid_price","bid_amount"]
[1765822132910,1.064204,2940.8,2939.8,0.002]
[1765822133112,0.405504,2940.6,2939.8,0.002]
[1765822133412,0.1057,2939.9,2939.8,0.002]
[1765822133650,0.6587,2939.9,2939.8,0.002]
[1765822134247,4.06017624,2939.9,2939.8,0.002]
[1765822134460,1.51054548,2939.9,2939.8,0.002]
[1765822134614,4.91202172,2939.9,2939.8,0.002]
[1765822134923,0.553,2939.9,2939.8,0.002]
[1765822135854,0.7644,2939.9,2939.8,0.002]
[1765822136158,4.57138024,2939.9,2939.8,0.002]
[1765822136667,4.57138024,2939.9,2939.5,0.002]
[1765822136668,0.405504,2939.8,2939.5,0.002]
[1765822136814,0.405504,2939.6,2939.5,0.002]
[1765822137244,0.509204,2939.6,2939.5,0.002]
[1765822137744,0.553,2939.9,2939.5,0.002]
[1765822137945,3.9544919,2939.9,2939.5,0.002]
[1765822138157,0.553,2939.9,2939.5,0.002]
[1765822139155,3.95447624,2939.9,2939.8,0.002]
[1765822139358,5.33590315,2939.9,2939.8,0.002]
[1765822139514,5.33590315,2939.9,2939.5,0.002]
[1765822139515,0.98597929,2939.8,2939.5,0.002]
[1765822139717,0.98597929,2939.6,2938.6,0.002]
[1765822140116,0.405504,2939.4,2938.6,0.002]
[1765822140353,0.405504,2939.2,2938.6,0.002]
[1765822140642,0.553,2939.3,2938.6,0.002]
[1765822140818,0.553,2939.2,2938.6,0.002]
[1765822141022,0.0997,2938.7,2938.6,0.002]
[1765822141822,0.553,2939.2,2938.6,0.002]
[1765822142022,3.80795141,2939.1,2938.6,0.002]
[1765822142225,7.65646396,2939.1,2938.6,0.002]
[1765822142426,0.0997,2939.0,2938.6,0.002]
[1765822143137,0.0997,2938.7,2938.6,0.002]
[1765822143453,1.058204,2938.7,2938.6,0.002]
[1765822143660,4.56076921,2938.7,2938.6,0.002]
[1765822143834,4.56076921,2938.7,2938.5,0.002]
[1765822143835,0.98597929,2938.6,2938.5,0.002]
[1765822144033,0.405504,2938.4,2937.5,0.002]
[1765822144236,0.405504,2938.2,2937.5,0.002]
[1765822144484,0.405504,2938.0,2937.5,0.002]
[1765822144764,0.67417529,2938.6,2937.5,0.002]
[1765822144971,0.958504,2938.5,2937.5,0.002]
[1765822145540,0.05,2939.0,2937.5,0.4909]
[1765822145541,0.0937,2939.0,2937.5,0.4909]
[1765822145777,3.95663363,2938.9,2937.7,0.58047529]
[1765822146076,0.405504,2938.7,2937.5,0.002]
[1765822146245,0.405504,2938.5,2937.5,0.002]
[1765822146568,0.0937,2938.6,2937.5,10.55576008]
[1765822146770,0.554,2938.5,2937.5,7.15150477]
[1765822147075,0.58047529,2938.8,2937.5,10.55576008]
[1765822147378,0.554,2938.7,2937.6,0.4889]
[1765822147580,0.6477,2938.7,2937.5,7.15150477]
[1765822147802,0.554,2938.7,2937.6,1.78472577]
[1765822148255,0.554,2938.7,2937.7,0.52294023]
[1765822148458,0.554,2938.7,2937.7,0.4889]
[1765822148657,0.554,2938.7,2937.6,1.29582577]
[1765822148861,4.05064042,2938.7,2937.6,1.78472577]
[1765822149179,0.554,2938.7,2937.7,0.52294023]
[1765822149384,0.554,2938.7,2937.7,0.4889]
[1765822149878,0.554,2938.7,2937.8,10.21172304]
[1765822150084,0.554,2938.7,2937.9,0.58047529]
[1765822150498,0.554,2938.7,2937.7,3.40402249]
[1765822150499,0.499204,2938.6,2937.7,3.40402249]
[1765822150782,0.405504,2938.4,2937.5,0.002]
[1765822151168,0.405504,2938.2,2937.5,0.002]
[1765822151350,0.0937,2938.3,2937.5,0.002]
[1765822151351,0.405504,2938.0,2937.5,0.002]
[1765822151885,0.405504,2937.8,2937.5,0.002]
[1765822152243,0.405504,2937.6,2937.5,0.002]
[1765822152787,0.554,2937.6,2937.5,0.002]
[1765822153081,1.053204,2937.6,2937.5,0.002]
[1765822153859,0.0937,2938.2,2937.5,0.002]
[1765822154072,1.053204,2938.1,2937.5,0.002]
[1765822154459,0.405504,2937.9,2937.5,0.002]
[1765822154851,0.554,2938.1,2937.5,0.002]
[1765822154852,0.405504,2937.7,2937.5,0.002]
[1765822155064,0.554,2937.6,2937.5,0.002]
[1765822155871,0.554,2937.6,2937.0,0.002]
[1765822155872,0.98597929,2937.5,2937.0,0.002]
[1765822156182,0.405504,2936.8,2936.7,0.002]
[1765822156378,0.959504,2936.8,2936.7,0.002]
[1765822156584,0.959504,2936.8,2936.3,0.002]
[1765822156758,0.405504,2936.6,2936.3,0.002]
[1765822157174,0.405504,2936.4,2936.3,0.002]
[1765822157550,0.0757,2936.4,2936.3,0.002]
[1765822157787,4.06170587,2936.4,2936.3,0.002]
[1765822157959,4.80841827,2936.4,2936.3,0.002]
[1765822158159,1.2279164,2936.4,2936.3,0.002]
[1765822158402,0.481204,2936.4,2936.3,0.002]
[1765822158778,3.88673458,2936.4,2936.3,0.002]
[1765822159008,0.481204,2936.4,2936.3,0.002]
[1765822159291,0.0797,2936.9,2936.3,0.002]
[1765822159499,0.554,2936.8,2936.3,0.002]
[1765822159704,0.96543347,2936.8,2936.3,0.002]
[1765822160496,0.481204,2936.7,2936.3,0.002]
[1765822160681,0.0757,2936.6,2936.3,0.002]
[1765822160893,0.0757,2936.6,2936.2,0.002]
[1765822160894,0.455504,2936.5,2936.2,0.002]
[1765822161198,0.98597929,2935.8,2935.1,0.002]
[1765822161357,0.554,2935.7,2935.1,0.002]
[1765822161566,0.405504,2935.6,2935.1,0.002]
[1765822161776,0.469204,2935.6,2935.1,0.002]
[1765822161980,0.405504,2935.4,2935.1,0.002]
[1765822162359,1.19817529,2935.5,2935.1,0.002]
[1765822162360,0.405504,2935.2,2935.1,0.002]
[1765822162773,0.0637,2935.2,2935.1,0.002]
[1765822163180,0.405504,2935.4,2935.1,0.002]
[1765822163390,1.24079403,2935.4,2935.1,0.002]
[1765822163700,0.405504,2935.2,2935.1,0.002]
[1765822164207,0.405504,2935.3,2935.1,0.002]
[1765822164375,0.959504,2935.2,2935.1,0.002]
[1765822164583,1.023204,2935.2,2935.1,0.002]
[1765822164891,0.959504,2935.2,2935.1,0.002]
[1765822165698,1.023204,2935.2,2935.1,0.002]
[1765822165901,0.405504,2935.6,2935.1,0.002]
[1765822166102,0.554,2935.5,2935.1,0.002]
[1765822166804,0.0637,2935.4,2935.1,0.002]
[1765822167178,0.554,2935.5,2935.1,0.002]
[1765822167884,0.6177,2935.5,2935.1,0.002]
[1765822168073,0.554,2935.5,2935.1,0.002]
[1765822168277,0.554,2935.5,2935.2,0.4889]
[1765822168582,0.554,2935.5,2935.1,0.1996]
[1765822168784,0.554,2935.5,2935.1,0.6885]
[1765822168986,0.554,2935.5,2935.2,0.4889]
[1765822170013,0.554,2935.5,2935.3,6.81361358]
[1765822170217,0.554,2935.5,2935.3,7.56382494]
[1765822171307,0.554,2935.5,2935.3,6.81361358]
[1765822171478,0.554,2935.5,2935.4,0.4574]
[1765822171897,0.554,2935.5,2935.3,3.40680679]
[1765822172299,0.554,2935.5,2935.2,6.8138075]
[1765822172530,0.554,2935.5,2935.1,3.40900983]
[1765822172684,0.554,2935.5,2935.1,6.81604877]
[1765822172884,0.554,2935.5,2935.1,3.40900983]
[1765822173113,0.554,2935.5,2935.1,0.002]
[1765822173383,0.469204,2935.4,2935.1,0.002]
[1765822173611,0.405504,2935.2,2935.1,0.002]
[1765822174192,3.81242686,2935.2,2935.1,0.002]
[1765822174392,4.45660215,2935.2,2935.1,0.002]
[1765822174806,0.959504,2935.2,2935.1,0.002]
[1765822175814,4.05165753,2935.6,2935.1,0.002]
[1765822175815,0.0647,2935.6,2935.1,0.002]
[1765822176034,0.001,2935.6,2935.1,0.2004]
[1765822176320,0.001,2935.6,2935.4,0.58047529]
[1765822176484,0.554,2936.2,2935.6,0.58047529]
[1765822176886,0.554,2936.2,2936.1,0.1984]
[1765822177291,0.554,2936.2,2936.1,0.6837]
[1765822178520,0.554,2936.2,2936.1,4.08957854]
[1765822180345,0.001,2936.8,2936.2,0.58047529]
[1765822180625,0.001,2936.8,2936.4,7.64367716]
[1765822180944,0.001,2936.8,2936.5,0.4853]
[1765822181312,0.001,2936.8,2936.3,3.40564656]
[1765822181623,0.001,2936.8,2935.7,0.1984]
[1765822182000,0.001,2936.8,2936.2,3.40574728]
[1765822182306,0.001,2936.8,2936.2,3.4057238]
[1765822182513,0.001,2936.8,2935.8,0.4853]
[1765822182514,0.406504,2936.8,2935.9,3.40611056]
[1765822182708,0.38114548,2936.7,2935.9,10.21833168]
[1765822183035,0.554,2936.6,2936.0,0.4853]
[1765822183807,0.001,2936.8,2936.0,0.4853]
[1765822184338,0.554,2936.7,2936.0,1.06577529]
[1765822184504,0.554,2936.7,2936.2,0.58047529]
[1765822184700,0.554,2936.7,2936.2,2.10745176]
[1765822184941,0.554,2936.7,2936.3,0.4853]
[1765822185531,0.001,2936.8,2936.3,0.4853]
[1765822186540,0.001,2936.8,2936.5,0.58047529]
[1765822186937,0.001,2936.8,2936.6,0.4853]
[1765822187654,0.001,2936.8,2936.7,0.4678]
[1765822188013,0.001,2936.8,2936.7,0.9531]
[1765822188749,0.001,2936.8,2936.7,4.93875797]
[1765822189441,0.001,2936.8,2936.7,5.773163]
[1765822190815,0.001,2936.8,2936.7,4.93875797]
[1765822191144,0.1778767,2937.7,2936.7,4.93875797]
[1765822191145,0.1778767,2937.7,2936.8,0.58047529]
[1765822191443,0.7318767,2937.7,2937.3,0.1984]
[1765822191817,0.7318767,2937.7,2937.4,0.4853]
[1765822192150,0.001,2937.9,2937.6,0.4678]
[1765822192316,0.554,2937.8,2937.6,0.4678]
[1765822192512,0.554,2937.8,2937.7,0.4853]
[1765822192718,0.554,2937.8,2937.7,0.9531]
[1765822192944,0.554,2937.8,2937.7,4.35712355]
[1765822193251,0.554,2937.8,2937.7,3.40402355]
[1765822193749,0.554,2937.8,2937.7,4.35712355]
[1765822195329,0.554,2937.8,2937.7,3.40402355]
[1765822195848,0.001,2937.9,2937.7,7.7611471]
[1765822196048,0.001,2937.9,2937.8,0.9531]
[1765822196462,0.001,2937.9,2937.1,0.4853]
[1765822196463,0.0667,2937.9,2937.1,0.4853]
[1765822196621,0.0657,2937.8,2937.3,3.40443082]
[1765822196820,0.34705563,2937.7,2937.4,3.40427443]
[1765822197020,0.34705563,2937.7,2937.0,0.1984]
[1765822197021,0.554,2937.6,2937.5,3.40425531]
[1765822197261,0.554,2937.6,2937.2,6.80911894]
[1765822197554,0.554,2937.6,2937.3,0.4853]
[1765822197932,0.554,2937.6,2937.5,0.4678]
[1765822198551,0.554,2937.6,2937.3,0.4853]
[1765822198734,0.554,2937.6,2937.2,6.80911894]
[1765822198928,0.554,2937.6,2937.2,7.29441894]
[1765822199943,0.554,2937.6,2937.5,0.4678]
[1765822200130,0.554,2937.6,2937.3,0.4853]
[1765822200323,0.001,2937.8,2937.5,0.4678]
[1765822200525,0.001,2939.0,2937.8,1.04827529]
[1765822200758,0.001,2939.0,2937.6,0.03404139]
[1765822200759,0.001,2939.0,2938.3,0.6662]
[1765822201127,0.001,2939.0,2938.9,0.4678]
[1765822201328,0.001,2939.6,2939.3,0.58047529]
[1765822201551,0.0737,2940.8,2939.4,0.51932054]
[1765822201552,0.203,2940.5,2939.4,0.51932054]
[1765822201746,0.203,2940.5,2939.4,0.4853]
[1765822202024,3.60379126,2940.5,2939.4,0.4853]
[1765822202623,3.40092084,2940.4,2939.4,0.4853]
[1765822202963,0.203,2940.5,2939.4,0.4853]
[1765822203347,0.203,2940.5,2939.5,3.4019391]
[1765822203522,3.40092329,2940.4,2939.5,3.4019391]
[1765822203728,3.40092329,2940.4,2939.4,0.4853]
[1765822203729,0.405504,2940.3,2939.1,0.77887529]
[1765822203963,0.405504,2940.3,2939.2,3.40227772]
[1765822204163,0.405504,2940.3,2939.2,3.40221738]
[1765822204379,0.405504,2940.3,2939.1,0.1984]
[1765822204528,0.17769307,2940.7,2939.4,6.80410575]
[1765822204730,0.405504,2940.6,2940.1,0.1845]
[1765822204961,0.553,2940.3,2939.5,1.04597529]
[1765822205330,6.8024897,2940.1,2939.2,0.58047529]
[1765822205531,3.40124485,2940.1,2939.2,7.38504795]
[1765822205732,0.72089092,2940.0,2939.2,7.38504795]
[1765822206131,0.1257,2939.9,2939.1,4.06626969]
[1765822207330,3.52723765,2939.9,2939.1,7.46867178]
[1765822207656,0.72089092,2940.0,2939.2,0.4655]
[1765822207857,0.553,2939.9,2939.2,0.4655]
[1765822208162,0.001,2940.2,2939.4,7.04588098]
[1765822208374,0.001,2940.2,2940.1,0.6759]
[1765822208543,0.001,2940.2,2939.5,0.58047529]
[1765822208544,0.553,2940.1,2939.5,1.04597529]
[1765822209063,0.553,2940.1,2940.0,0.6759]
[1765822209260,0.554,2940.2,2940.0,0.6759]
[1765822209457,0.554,2940.2,2940.1,3.40124485]
[1765822210371,0.001,2940.2,2940.1,4.35814485]
[1765822212743,0.001,2940.2,2940.1,5.76703283]
[1765822212944,0.001,2940.2,2940.1,5.73302039]
[1765822213139,0.001,2940.8,2940.2,0.58047529]
[1765822213361,0.001,2940.8,2940.7,0.4914]
[1765822213562,0.001,2940.8,2940.7,0.9569]
[1765822213766,3.90425006,2940.8,2940.1,0.58047529]
[1765822214063,3.90425006,2940.8,2940.1,7.84846499]
[1765822214064,0.39042501,2940.7,2940.1,7.84846499]
[1765822214285,0.554,2940.8,2940.1,7.84846499]
[1765822214584,0.554,2940.8,2940.7,0.4914]
[1765822214757,0.001,2940.8,2940.7,0.4914]
[1765822214953,0.001,2940.8,2940.7,0.9569]
[1765822215881,0.001,2940.8,2940.7,4.35745088]
[1765822218386,0.001,2940.8,2940.7,4.93792617]
[1765822218751,0.001,2940.8,2940.7,5.77178472]
[1765822219477,0.001,2940.8,2940.4,3.86636189]
[1765822219669,0.001,2940.8,2940.7,3.89195088]
[1765822219863,0.001,2940.8,2940.7,4.47242617]
[1765822220065,0.001,2941.1,2940.8,0.58047529]
[1765822220265,0.001,2942.0,2940.8,0.58047529]
[1765822220266,0.001,2942.0,2941.3,0.6759]
[1765822220465,0.001,2942.0,2941.9,0.4914]
[1765822220984,0.001,2942.0,2941.9,0.9569]
[1765822222087,0.001,2942.0,2941.9,4.93653909]
[1765822222858,0.001,2942.0,2941.9,1.07187529]
[1765822223060,0.001,2942.0,2941.9,0.58047529]
[1765822223268,0.001,2942.0,2941.9,4.93653909]
[1765822223468,0.001,2942.0,2941.6,3.39943887]
[1765822223686,0.001,2942.0,2941.5,0.4655]
[1765822223687,0.001,2942.0,2941.7,3.39933275]
[1765822223889,0.553,2941.9,2941.3,4.0498399]
[1765822224191,0.553,2941.9,2941.4,3.39974161]
[1765822224392,0.553,2941.9,2941.4,6.79948322]
[1765822224596,0.553,2941.9,2941.5,0.4655]
[1765822224769,0.39530602,2941.8,2941.5,0.4655]
[1765822224971,0.553,2941.9,2941.5,0.4655]
[1765822225172,0.553,2941.9,2941.2,3.39997242]
[1765822225173,3.95226221,2941.9,2941.2,3.39997242]
[1765822225386,3.95226221,2941.9,2941.1,0.65]
[1765822225688,0.553,2941.8,2941.2,3.86543671]
[1765822226081,3.3993949,2941.7,2941.2,0.4655]
[1765822226282,0.73516964,2941.7,2941.2,3.39996689]
[1765822226483,0.553,2941.8,2941.2,7.26543969]
[1765822226783,0.553,2941.7,2941.3,0.4655]
[1765822226981,0.2533,2941.3,2940.8,3.40041527]
[1765822227182,0.553,2941.7,2940.6,0.1845]
[1765822227183,0.405504,2941.6,2940.6,0.1845]
[1765822227364,0.405504,2941.6,2941.0,3.40014741]
[1765822227691,0.405504,2941.6,2941.1,3.40004847]
[1765822227878,0.001,2941.9,2941.5,0.4914]
[1765822228082,0.553,2941.8,2941.2,7.26544387]
[1765822228294,0.001,2941.9,2941.8,0.4914]
[1765822228487,0.001,2941.9,2941.8,0.9569]
[1765822229401,0.001,2941.9,2941.3,0.58047529]
[1765822229704,0.001,2941.9,2941.4,0.4655]
[1765822230203,0.001,2941.9,2941.6,0.58047529]
[1765822230410,0.001,2941.9,2941.5,3.39962604]
[1765822230606,0.553,2941.8,2941.6,0.4637]
[1765822230802,0.001,2941.9,2941.8,0.4989]
[1765822231202,0.001,2941.9,2941.8,0.9626]
[1765822232105,0.001,2941.9,2941.8,8.90093156]
[1765822232307,0.001,2941.9,2941.8,5.89049533]
[1765822232603,0.001,2941.9,2941.8,4.94235464]
[1765822235511,0.001,2942.0,2941.9,0.58047529]
[1765822235713,0.001,2942.2,2941.9,1.54577529]
[1765822236009,0.001,2942.3,2942.1,0.6793]
[1765822236315,0.001,2943.5,2942.9,0.58047529]
[1765822236611,0.001,2943.5,2942.9,1.07647529]
[1765822236824,0.001,2943.5,2943.0,0.9653]
[1765822238410,0.001,2943.5,2943.0,4.94366859]
[1765822239127,0.001,2944.3,2943.1,1.25977529]
[1765822239326,0.001,2944.3,2944.2,0.6793]
[1765822239829,0.001,2944.3,2944.0,0.1833]
[1765822240027,0.001,2944.3,2944.0,0.6526]
[1765822240245,0.001,2944.3,2944.2,0.496]
[1765822240527,0.001,2944.3,2944.2,4.94228367]
[1765822240738,0.552,2945.1,2944.3,0.496]
[1765822241024,0.552,2946.1,2945.0,0.496]
[1765822241426,0.552,2946.1,2945.1,0.4693]
[1765822241641,0.552,2946.1,2944.6,0.4693]
[1765822241642,0.405504,2945.9,2944.6,0.4693]
[1765822242123,0.405504,2945.7,2944.3,0.58047529]
[1765822242300,6.78978814,2945.6,2944.5,3.39616233]
[1765822242498,6.78978814,2945.6,2944.6,0.4693]
[1765822242698,1.24527929,2945.5,2944.2,0.4693]
[1765822243127,0.405504,2945.3,2943.8,0.4693]
[1765822243303,0.405504,2945.1,2944.1,0.1833]
[1765822243504,0.552,2945.0,2944.1,0.1833]
[1765822243711,0.552,2945.0,2944.2,0.4693]
[1765822244029,0.58147529,2945.5,2944.9,0.496]
[1765822244030,0.001,2945.5,2944.9,0.496]
[1765822244243,0.553,2945.5,2945.0,0.496]
[1765822244450,0.001,2945.5,2945.4,0.496]
[1765822244618,0.001,2945.5,2945.1,1.04977529]
[1765822244819,0.001,2945.5,2945.1,2.56964973]
[1765822245019,0.001,2945.5,2945.2,0.4693]
[1765822245344,0.001,2946.7,2944.9,0.58047529]
[1765822245345,0.1287,2945.9,2944.9,0.58047529]
[1765822245651,0.1287,2945.9,2944.3,0.4693]
[1765822245969,0.714804,2945.8,2944.1,0.1833]
[1765822246121,0.405504,2945.3,2944.1,0.1833]
[1765822246316,0.405504,2945.0,2944.1,0.1833]
[1765822246531,0.405504,2944.8,2943.8,0.4693]
[1765822246732,0.405504,2944.8,2943.4,0.4693]
[1765822247053,0.405504,2944.8,2943.8,3.39696278]
[1765822247241,0.405504,2944.6,2943.7,3.39708077]
[1765822247551,0.552,2944.5,2943.4,0.4693]
[1765822247968,1.05919153,2944.9,2944.4,0.1833]
[1765822248266,3.39431791,2946.1,2944.4,0.6526]
[1765822248424,0.552,2946.0,2944.7,0.58047529]
[1765822248844,0.1287,2945.9,2944.7,1.04977529]
[1765822249048,3.57139507,2946.4,2944.8,0.03395816]
[1765822249245,0.552,2946.3,2944.8,1.25348693]
[1765822249448,0.001,2944.9,2944.8,1.25348693]
[1765822249649,0.001,2944.9,2944.8,0.78418693]
[1765822249823,3.39466449,2946.7,2944.8,0.78418693]
[1765822250030,0.001,2946.1,2944.9,0.4693]
[1765822250364,0.001,2946.1,2945.1,0.58047529]
[1765822250531,0.553,2946.1,2945.1,0.58047529]
[1765822250726,0.553,2946.1,2945.2,0.4693]
[1765822251435,0.001,2946.1,2945.2,0.4693]
[1765822251759,0.001,2946.1,2945.2,1.93251182]
[1765822252169,0.001,2946.1,2945.3,0.4693]
[1765822252365,0.001,2946.1,2945.5,0.58047529]
[1765822252748,0.001,2946.1,2945.6,0.4693]
[1765822253468,0.001,2946.1,2945.5,0.58047529]
[1765822253641,0.001,2946.1,2945.3,3.39521522]
[1765822254466,0.001,2946.1,2944.8,0.4693]
[1765822254467,0.405504,2946.0,2944.8,0.4693]
[1765822254666,0.405504,2945.8,2945.1,3.39537283]
[1765822254869,0.405504,2945.8,2944.8,0.4693]
[1765822255058,0.405504,2945.8,2944.4,0.1833]
[1765822255258,0.405504,2945.8,2944.4,0.6526]
[1765822255571,0.405504,2945.8,2944.9,3.39566593]
[1765822256069,0.58111015,2945.8,2944.8,3.39578427]
[1765822256267,0.58111015,2945.8,2944.6,0.4693]
[1765822256575,0.58111015,2945.8,2945.0,6.791151]
[1765822256743,0.001,2946.1,2945.0,6.791151]
[1765822257068,0.001,2945.8,2945.1,0.4693]
[1765822257875,0.406504,2945.8,2944.9,3.39564985]
[1765822258264,0.406504,2945.8,2945.0,0.4693]
[1765822258572,0.551,2945.7,2945.1,6.79094088]
[1765822258772,0.551,2945.7,2945.2,2.11535438]
[1765822258974,0.551,2945.7,2945.3,0.4693]
[1765822259270,0.552,2945.8,2945.3,0.4693]
[1765822259472,0.552,2945.8,2945.0,3.39554057]
[1765822259650,0.552,2945.8,2945.0,7.2604263]
[1765822260274,0.552,2945.8,2945.0,3.86484057]
[1765822260473,0.552,2945.8,2945.0,10.65601203]
[1765822260847,0.552,2945.8,2945.1,0.4693]
[1765822261575,0.001,2945.8,2945.1,0.4693]
[1765822261873,0.001,2945.8,2945.1,1.04977529]
[1765822262283,0.001,2945.8,2945.2,0.4933]
[1765822262775,0.001,2945.8,2944.3,3.39636344]
[1765822262776,0.405504,2945.6,2944.3,3.39636344]
[1765822262993,0.405504,2945.6,2944.2,0.4933]
[1765822263151,0.405504,2945.6,2943.8,0.58047529]
[1765822263152,0.405504,2945.4,2944.1,0.198]
[1765822263355,0.2603,2945.5,2944.7,3.39591143]
[1765822263554,0.2603,2945.5,2944.1,0.198]
[1765822263555,0.405504,2945.3,2944.2,3.88975154]
[1765822263754,0.405504,2945.3,2944.1,0.198]
[1765822263979,0.405504,2945.1,2944.3,3.39633123]
[1765822264180,0.405504,2945.1,2944.4,0.002]
[1765822264359,0.405504,2944.9,2944.4,0.002]
[1765822264560,6.7916327,2944.8,2944.4,0.002]
[1765822264757,1.67621767,2944.7,2944.4,0.002]
[1765822265076,1.38551767,2944.7,2944.4,0.002]
[1765822265383,0.05,2945.4,2944.4,0.002]
[1765822265384,0.551,2944.6,2944.4,0.002]
[1765822265983,0.551,2944.5,2944.4,0.002]
[1765822266758,0.551,2944.6,2944.4,0.4953]
[1765822267492,0.405504,2945.3,2944.4,0.4953]
[1765822267693,0.551,2945.2,2944.4,0.4953]
[1765822268785,0.551,2945.1,2944.5,6.79232466]
[1765822268982,0.001,2945.8,2944.5,7.86072601]
[1765822269182,1.13147529,2945.7,2944.6,0.4933]
[1765822269386,3.39566869,2945.8,2944.6,1.07377529]
[1765822269387,0.551,2945.6,2944.6,1.07377529]
[1765822269978,0.551,2945.6,2944.7,0.4933]
[1765822270488,0.551,2945.6,2944.7,2.0659826]
[1765822270688,0.551,2945.6,2944.8,6.7916327]
[1765822270899,3.94590967,2945.6,2944.8,0.4933]
[1765822271063,0.405504,2945.5,2944.7,3.39592564]
[1765822271266,0.551,2945.4,2944.7,3.39592564]
[1765822271469,1.32563077,2945.4,2944.7,3.8891232]
[1765822271668,1.32563077,2945.4,2944.8,0.4933]
[1765822271669,0.77463077,2945.4,2944.8,0.4933]
[1765822271902,0.551,2945.4,2944.8,0.4933]
[1765822272067,0.406504,2945.8,2944.8,1.07377529]
[1765822272268,0.001,2945.8,2944.8,1.07377529]
[1765822272468,0.001,2945.8,2944.9,0.4933]
[1765822272782,0.001,2945.8,2945.1,0.58047529]
[1765822273371,0.406504,2945.8,2945.0,3.39558573]
[1765822273889,0.406504,2945.8,2944.8,0.002]
[1765822273890,0.406504,2945.8,2944.9,3.39565068]
[1765822274290,0.666804,2945.8,2945.0,3.39558573]
[1765822274626,0.666804,2945.8,2944.8,0.002]
[1765822274627,0.405504,2945.6,2944.8,0.002]
[1765822275037,0.2603,2945.5,2944.8,0.002]
[1765822275201,0.405504,2945.3,2944.8,0.002]
[1765822275733,0.405504,2945.1,2944.8,0.002]
[1765822276094,0.601,2945.4,2944.8,0.002]
[1765822276095,0.405504,2944.9,2944.8,0.002]
[1765822277018,4.35220504,2944.9,2944.8,0.002]
[1765822277220,0.58047529,2945.6,2944.8,0.002]
[1765822277221,0.84077529,2945.5,2944.8,0.002]
[1765822277501,0.956504,2945.4,2944.8,0.002]
[1765822277828,0.551,2945.3,2944.8,0.002]
[1765822278422,0.551,2945.2,2944.8,0.002]
[1765822278800,0.405504,2945.4,2944.8,0.002]
[1765822279033,1.14309615,2945.4,2944.8,0.002]
[1765822279329,3.39567343,2945.8,2944.8,0.4953]
[1765822279521,0.551,2945.7,2944.8,0.4953]
[1765822279903,0.405504,2945.6,2944.8,0.4953]
[1765822280427,0.551,2945.5,2944.8,0.4953]
[1765822281135,0.551,2945.5,2944.9,6.79140208]
[1765822281332,0.001,2945.3,2945.0,0.72867021]
[1765822281502,0.001,2945.3,2944.9,7.28470208]
[1765822282121,0.001,2945.3,2945.0,0.4933]
[1765822282343,0.001,2945.3,2944.8,3.39779203]
[1765822282566,0.001,2945.3,2944.8,0.002]
[1765822282567,0.2603,2945.2,2944.8,0.002]
[1765822282848,0.405504,2945.0,2944.8,0.002]
[1765822283054,3.80120504,2944.9,2944.8,0.002]
[1765822283256,3.39563527,2945.0,2944.8,0.002]
[1765822283420,0.551,2944.9,2944.8,0.002]
[1765822283820,0.001,2945.3,2944.8,0.002]
[1765822284219,0.551,2945.2,2944.8,0.002]
[1765822285051,0.001,2945.3,2944.9,0.4933]
[1765822285233,0.551,2945.1,2944.8,0.002]
[1765822285438,0.551,2945.1,2944.9,0.4933]
[1765822286164,0.551,2945.1,2944.8,0.002]
[1765822286531,0.551,2945.1,2944.8,0.4953]
[1765822287272,0.551,2945.0,2944.9,3.39570104]
[1765822287629,0.551,2945.0,2944.9,3.88900104]
[1765822287857,0.551,2945.0,2944.9,4.36460104]
[1765822288222,0.001,2945.3,2944.9,8.53654323]
[1765822288428,0.551,2945.2,2944.8,0.002]
[1765822288641,0.8113,2945.2,2944.8,0.002]
[1765822288868,0.2603,2944.9,2944.8,0.002]
[1765822289462,0.665804,2944.9,2944.8,0.002]
[1765822289680,1.46952602,2944.9,2944.8,0.002]
[1765822289877,0.405504,2944.8,2944.4,0.069925]
[1765822290165,0.80372202,2944.9,2944.4,3.46619223]
[1765822290462,0.551,2944.7,2944.4,6.8624699]
[1765822290877,0.551,2944.7,2944.4,0.069925]
[1765822291074,0.551,2944.7,2944.4,7.3377458]
[1765822291568,0.551,2944.6,2944.5,0.4753]
[1765822292459,0.001,2945.3,2944.5,0.4753]
[1765822292663,0.551,2945.2,2944.6,1.41303011]
[1765822292892,0.552,2945.3,2944.6,1.41303011]
[1765822293121,0.552,2945.3,2944.7,0.4728]
[1765822293459,0.552,2945.3,2944.9,0.58047529]
[1765822293460,0.001,2945.3,2944.9,0.58047529]
[1765822293863,0.001,2945.3,2945.0,0.4728]
[1765822294793,0.001,2945.3,2944.9,0.58047529]
[1765822295000,0.001,2945.3,2945.0,0.4728]
[1765822295500,0.001,2945.3,2945.1,6.79094088]
[1765822295992,0.001,2945.3,2945.2,0.4728]
[1765822296670,0.001,2945.3,2945.2,8.07294486]
[1765822296877,0.001,2945.8,2945.2,8.07294486]
[1765822297080,0.001,2945.8,2945.3,2.29873562]
[1765822297588,0.001,2945.8,2945.5,0.58047529]
[1765822297793,0.001,2945.8,2945.7,0.493]